bitfinex-derivatives/quotes_SOLF0:USTF0_20250216
["timestamp","ask_amount","ask_price","bid_price","bid_amount"]
[1739675374742,5.1631,193.65,193.64,0.0392141]
[1739675375847,9.20775577,193.66,193.58,14.37255577]
[1739675376048,5.164,193.62,193.58,9.20775577]
[1739675377248,5.20213608,193.62,193.58,9.24274189]
[1739675377451,5.1643,193.61,193.58,9.24274189]
[1739675377647,9.24589185,193.62,193.58,0.03498612]
[1739675377846,9.20775577,193.6,193.58,0.03498612]
[1739675378144,9.20775577,193.6,193.54,9.20775577]
[1739675378748,5.1652,193.58,193.54,9.20775577]
[1739675379147,5.1979825,193.58,193.54,9.245138]
[1739675379350,9.24053827,193.58,193.54,0.03738223]
[1739675379550,5.1654,193.57,193.54,0.03738223]
[1739675380251,5.1657,193.56,193.54,0.03738223]
[1739675381048,9.24053827,193.58,193.54,0.03738223]
[1739675381249,5.1653,193.57,193.54,0.03738223]
[1739675381650,9.24053827,193.58,193.54,0.03738223]
[1739675381849,14.40553827,193.58,193.54,0.03738223]
[1739675384452,0.0327825,193.58,193.55,5.1658]
[1739675384654,0.0327825,193.58,193.54,9.245138]
[1739675387052,0.0327825,193.58,193.55,5.1655]
[1739675388954,0.0327825,193.58,193.54,9.245138]
[1739675389155,0.0327825,193.58,193.54,14.411138]
[1739675389956,0.0327825,193.58,193.54,9.245138]
[1739675390156,5.1653,193.57,193.54,9.245138]
[1739675392458,5.1656,193.56,193.54,9.245138]
[1739675393563,5.1653,193.57,193.54,9.245138]
[1739675394862,5.1656,193.56,193.54,9.245138]
[1739675397966,5.1653,193.57,193.54,9.245138]
[1739675399263,0.0327825,193.58,193.55,5.1658]
[1739675400263,0.0327825,193.58,193.54,9.245138]
[1739675400572,9.24053827,193.58,193.54,0.03738223]
[1739675402066,5.1658,193.55,193.54,0.03738223]
[1739675404160,0.0327825,193.58,193.54,9.245138]
[1739675404363,0.0327825,193.58,193.56,9.20775577]
[1739675404965,0.0327825,193.58,193.54,14.411138]
[1739675405162,0.0327825,193.58,193.54,9.245138]
[1739675405770,5.1978825,193.58,193.54,9.245138]
[1739675406166,5.1653,193.57,193.54,9.245138]
[1739675406366,5.1653,193.57,193.54,0.03738223]
[1739675408476,5.1653,193.57,193.54,9.245138]
[1739675409975,0.0327825,193.58,193.54,9.245138]
[1739675410178,5.1977825,193.58,193.54,9.245138]
[1739675411175,0.0327825,193.58,193.54,9.245138]
[1739675411377,5.1653,193.57,193.54,9.245138]
[1739675411583,0.0327825,193.58,193.54,9.245138]
[1739675412081,0.0327825,193.58,193.54,0.03738223]
[1739675412980,5.1658,193.55,193.54,0.03738223]
[1739675417578,5.1656,193.56,193.54,0.03738223]
[1739675418478,9.24053827,193.58,193.54,0.03738223]
[1739675418676,5.1658,193.56,193.54,0.03738223]
[1739675418879,9.24053827,193.58,193.54,0.03738223]
[1739675421280,5.1657,193.56,193.54,0.03738223]
[1739675421677,9.24053827,193.58,193.54,0.03738223]
[1739675421873,5.1658,193.55,193.54,0.03738223]
[1739675423080,9.24053827,193.58,193.54,0.03738223]
[1739675423286,0.0327825,193.58,193.54,0.03738223]
[1739675423586,5.1655,193.57,193.54,0.03738223]
[1739675424079,0.0327825,193.58,193.54,0.03738223]
[1739675424285,5.1656,193.56,193.54,0.03738223]
[1739675427188,9.24053827,193.58,193.54,0.03738223]
[1739675427380,0.0327825,193.58,193.54,0.03738223]
[1739675427986,5.1978825,193.58,193.54,0.03738223]
[1739675430091,0.0327825,193.58,193.55,5.1657]
[1739675430291,0.0327825,193.58,193.54,9.245138]
[1739675430590,0.0327825,193.58,193.56,9.20775577]
[1739675430885,0.0327825,193.58,193.56,14.37325577]
[1739675431280,0.0327825,193.58,193.54,0.03738223]
[1739675431486,0.0327825,193.58,193.54,14.410938]
[1739675432503,5.1978825,193.58,193.54,9.245138]
[1739675433596,0.0327825,193.58,193.54,0.03738223]
[1739675433795,5.1655,193.56,193.54,0.03738223]
[1739675435692,5.1658,193.55,193.54,0.03738223]
[1739675442708,9.20775577,193.56,193.46,5.1679]
[1739675442909,14.37475577,193.51,193.44,9.20775577]
[1739675443408,14.37475577,193.51,193.45,5.1682]
[1739675443704,5.1672,193.5,193.45,5.1682]
[1739675443906,5.20516786,193.5,193.46,0.03720086]
[1739675444704,5.1676,193.49,193.46,0.03720086]
[1739675444906,14.37535577,193.49,193.46,0.03720086]
[1739675445102,9.20775577,193.47,193.46,0.03720086]
[1739675445308,14.37565577,193.47,193.46,0.03720086]
[1739675447008,9.20775577,193.47,193.46,0.03720086]
[1739675448008,9.20775577,193.49,193.46,0.03720086]
[1739675448204,0.03796786,193.5,193.46,0.03720086]
[1739675448406,0.03796786,193.5,193.46,9.24495663]
[1739675448610,0.03796786,193.5,193.47,5.1679]
[1739675458419,0.03796786,193.5,193.48,5.1676]
[1739675458608,0.03796786,193.5,193.46,0.03720086]
[1739675459013,9.20775577,193.49,193.46,5.20540086]
[1739675461119,9.20775577,193.49,193.46,0.03720086]
[1739675463317,9.20775577,193.49,193.46,5.20540086]
[1739675465419,0.03796786,193.5,193.48,5.1677]
[1739675465718,0.03796786,193.5,193.46,9.24495663]
[1739675466515,0.03796786,193.5,193.48,9.20775577]
[1739675467322,0.03796786,193.5,193.49,5.1674]
[1739675467822,0.03796786,193.5,193.48,9.20775577]
[1739675467823,193.0,193.54,193.52,5.1666]
[1739675468025,9.20775577,193.57,193.52,5.1666]
[1739675468822,0.03298019,193.56,193.53,0.03620898]
[1739675469321,0.03298019,193.56,193.53,5.20250898]
[1739675470116,0.03298019,193.56,193.54,5.1661]
[1739675473116,0.03298019,193.56,193.55,5.1658]
[1739675474219,0.03298019,193.56,193.55,14.37355577]
[1739675490833,0.03298019,193.56,193.53,9.24396475]
[1739675491134,0.03298019,193.56,193.53,5.20230898]
[1739675494938,0.03298019,193.56,193.53,0.03620898]
[1739675495140,0.03298019,193.56,193.54,5.1661]
[1739675501242,0.03298019,193.56,193.55,9.20775577]
[1739675501443,9.20775577,193.63,193.55,9.20775577]
[1739675501646,9.20775577,193.63,193.57,9.20775577]
[1739675501945,194.6671,193.67,193.57,9.20775577]
[1739675501946,9.20775577,193.65,193.57,9.20775577]
[1739675502146,5.1636,193.64,193.59,5.1647]
[1739675502538,0.03851222,193.63,193.6,0.0337804]
[1739675504149,5.20241222,193.63,193.6,0.0337804]
[1739675504743,5.1642,193.61,193.6,0.0337804]
[1739675505144,9.24626799,193.63,193.6,0.0337804]
[1739675506449,5.1639,193.62,193.6,0.0337804]
[1739675506850,9.24626799,193.63,193.6,0.0337804]
[1739675508038,5.1642,193.61,193.6,0.0337804]
[1739675512050,14.37195577,193.61,193.6,8.04e-05]
[1739675517663,9.20775577,193.52,193.46,9.20775577]
[1739675518368,5.1666,193.52,193.46,14.37595577]
[1739675518768,0.03452058,193.51,193.47,0.03591202]
[1739675519368,5.20152058,193.51,193.47,0.03591202]
[1739675519568,0.03452058,193.51,193.47,0.03591202]
[1739675521067,0.03452058,193.51,193.49,5.1673]
[1739675521266,0.03452058,193.51,193.5,9.20775577]
[1739675521968,0.03452058,193.51,193.5,14.37485577]
[1739675523369,0.03452058,193.51,193.5,9.20775577]
[1739675524871,0.03452058,193.51,193.48,9.20775577]
[1739675526076,5.20162058,193.51,193.48,9.20775577]
[1739675527273,0.03452058,193.51,193.48,9.20775577]
[1739675528073,5.20142058,193.51,193.48,9.20775577]
[1739675528878,0.03452058,193.51,193.47,0.03591202]
[1739675529980,5.1672,193.5,193.47,0.03591202]
[1739675530283,0.03452058,193.51,193.47,0.03591202]
[1739675530783,5.1674,193.5,193.47,0.03591202]
[1739675531081,0.03452058,193.51,193.47,0.03591202]
[1739675531279,0.03452058,193.51,193.47,5.20381202]
[1739675535385,0.03452058,193.51,193.47,0.03591202]
[1739675536890,5.1671,193.5,193.47,0.03591202]
[1739675537088,0.03452058,193.51,193.47,0.03591202]
[1739675537489,5.20142058,193.51,193.47,0.03591202]
[1739675538385,5.1672,193.5,193.47,0.03591202]
[1739675540489,0.03452058,193.51,193.47,0.03591202]
[1739675540687,5.20142058,193.51,193.47,5.20381202]
[1739675541189,0.03452058,193.51,193.47,0.03591202]
[1739675541383,5.1672,193.5,193.47,0.03591202]
[1739675542888,0.03452058,193.51,193.47,0.03591202]
[1739675543089,5.1677,193.48,193.47,0.03591202]
[1739675545790,5.1677,193.48,193.47,0.00292549]
[1739675545791,14.37545577,193.48,193.47,0.00292549]
[1739675558900,5.1694,193.42,193.36,14.37855577]
[1739675559199,14.37715577,193.42,193.36,9.20775577]
[1739675559699,9.20775577,193.42,193.37,5.1704]
[1739675560093,0.03354072,193.41,193.38,0.03349195]
[1739675560697,0.03354072,193.41,193.38,5.20359195]
[1739675562597,0.03354072,193.41,193.38,0.03349195]
[1739675567696,5.20314072,193.41,193.38,0.03349195]
[1739675573511,0.03354072,193.41,193.38,0.03349195]
[1739675573712,5.1698,193.4,193.38,0.03349195]
[1739675578507,5.20334072,193.41,193.38,0.03349195]
[1739675585014,0.03354072,193.41,193.38,0.03349195]
[1739675585221,5.1698,193.4,193.38,0.03349195]
[1739675585519,0.03354072,193.41,193.38,0.03349195]
[1739675585721,5.1699,193.4,193.38,0.03349195]
[1739675586917,5.20314072,193.41,193.38,0.03349195]
[1739675588020,5.1698,193.4,193.38,0.03349195]
[1739675590121,5.1701,193.39,193.38,0.03349195]
[1739675591231,9.20775577,193.4,193.38,0.03349195]
[1739675592334,0.03354072,193.41,193.38,0.03349195]
[1739675594436,5.20314072,193.41,193.38,0.03349195]
[1739675596432,0.03354072,193.41,193.38,0.03349195]
[1739675596638,5.1699,193.4,193.38,0.03349195]
[1739675598736,0.03354072,193.41,193.38,0.03349195]
[1739675600139,5.20314072,193.41,193.38,0.03349195]
[1739675605743,0.03354072,193.41,193.38,0.03349195]
[1739675606136,0.03354072,193.41,193.38,9.24124772]
[1739675606335,0.03354072,193.41,193.39,5.1699]
[1739675606737,0.03354072,193.41,193.4,14.37755577]
[1739675614954,5.168,193.47,193.42,5.1691]
[1739675615154,5.168,193.47,193.43,9.20775577]
[1739675615859,5.168,193.47,193.43,14.37665577]
[1739675616050,5.20277973,193.47,193.43,14.41219808]
[1739675616855,0.03477973,193.47,193.44,5.1687]
[1739675617356,0.03477973,193.47,193.45,9.20775577]
[1739675617556,0.03477973,193.47,193.46,5.1682]
[1739675620757,0.03477973,193.47,193.43,14.41229808]
[1739675620959,9.2425355,193.47,193.43,5.20454231]
[1739675622064,14.4105355,193.47,193.43,5.20454231]
[1739675622663,9.2425355,193.47,193.43,0.03554231]
[1739675622863,5.1684,193.46,193.43,0.03554231]
[1739675623363,9.2425355,193.47,193.43,0.03554231]
[1739675623559,5.1685,193.45,193.43,0.03554231]
[1739675624359,9.20775577,193.45,193.43,0.03554231]
[1739675624561,5.1687,193.44,193.43,0.03554231]
[1739675631067,9.2425355,193.47,193.43,0.03554231]
[1739675631469,9.2425355,193.47,193.43,5.20454231]
[1739675633271,0.03477973,193.47,193.44,5.1686]
[1739675635176,0.03477973,193.47,193.43,9.24329808]
[1739675635376,0.03477973,193.47,193.45,14.37615577]
[1739675641481,0.03477973,193.47,193.45,9.20775577]
[1739675644079,0.03477973,193.47,193.45,14.37625577]
[1739675644279,0.03477973,193.47,193.45,9.20775577]
[1739675644985,0.03477973,193.47,193.46,5.1682]
[1739675647584,15.97965577,193.55,193.5,5.167]
[1739675647885,5.166,193.55,193.5,14.37475577]
[1739675648283,5.1661,193.54,193.5,14.37475577]
[1739675648487,9.20775577,193.57,193.51,5.1669]
[1739675648889,0.03684859,193.56,193.52,0.03370689]
[1739675649090,5.20244859,193.56,193.52,0.03370689]
[1739675649482,0.03684859,193.56,193.52,5.20020689]
[1739675649885,0.03684859,193.56,193.52,14.40796266]
[1739675654891,5.1658,193.55,193.52,9.24146266]
[1739675655084,5.1658,193.55,193.52,0.03370689]
[1739675657093,5.1661,193.54,193.52,0.03370689]
[1739675661093,5.1663,193.53,193.52,0.03370689]
[1739675667700,14.37405577,193.53,193.52,0.03370689]
[1739675670003,5.1663,193.53,193.52,0.03370689]
[1739675676307,14.37405577,193.53,193.52,0.03370689]
[1739675687021,5.1663,193.53,193.52,0.03370689]
[1739675687916,0.03684859,193.56,193.52,0.03370689]
[1739675689121,5.20264859,193.56,193.52,0.03370689]
[1739675689323,0.03684859,193.56,193.52,0.03370689]
[1739675689720,5.166,193.55,193.52,0.03370689]
[1739675691825,0.03684859,193.56,193.52,0.03370689]
[1739675692027,5.20244859,193.56,193.52,0.03370689]
[1739675693827,0.03684859,193.56,193.52,5.20030689]
[1739675694030,0.03684859,193.56,193.52,0.03370689]
[1739675695119,5.20244859,193.56,193.52,0.03370689]
[1739675695323,0.03684859,193.56,193.52,9.24146266]
[1739675696127,0.03684859,193.56,193.52,14.40806266]
[1739675696920,0.03684859,193.56,193.53,5.1662]
[1739675697428,0.03684859,193.56,193.54,9.20775577]
[1739675697629,0.03684859,193.56,193.55,5.1658]
[1739675699423,0.03684859,193.56,193.54,9.20775577]
[1739675700031,0.03684859,193.56,193.54,14.37375577]
[1739675702133,0.03684859,193.56,193.54,9.20775577]
[1739675703740,5.1658,193.55,193.52,9.24146266]
[1739675704127,0.03684859,193.56,193.52,0.03370689]
[1739675704832,14.37405577,193.53,193.52,0.03370689]
[1739675705133,9.20775577,193.53,193.44,12.39715577]
[1739675705331,5.1679,193.47,193.44,12.39715577]
[1739675705527,5.1679,193.47,193.42,9.20775577]
[1739675705736,9.20775577,193.49,193.42,9.20775577]
[1739675706037,5.1682,193.46,193.42,9.20775577]
[1739675706433,5.20476042,193.46,193.42,9.24508528]
[1739675707236,0.03656042,193.46,193.42,9.24508528]
[1739675707944,0.03656042,193.46,193.43,5.1689]
[1739675708436,0.03656042,193.46,193.44,9.20775577]
[1739675710948,5.1688,193.44,193.42,9.24508528]
[1739675711345,0.03656042,193.46,193.42,9.24508528]
[1739675711943,5.1685,193.45,193.42,9.24508528]
[1739675712948,5.20476042,193.46,193.42,9.24508528]
[1739675713347,0.03656042,193.46,193.44,14.37645577]
[1739675713545,0.03656042,193.46,193.44,9.20775577]
[1739675715051,0.03656042,193.46,193.45,5.1685]
[1739675722958,5.20496042,193.46,193.42,14.41428528]
[1739675723152,0.03656042,193.46,193.42,9.24508528]
[1739675724054,5.1687,193.45,193.42,9.24508528]
[1739675724759,0.03656042,193.46,193.42,9.24508528]
[1739675724961,0.03656042,193.46,193.43,5.1689]
[1739675725165,0.03656042,193.46,193.42,9.24508528]
[1739675725765,0.03656042,193.46,193.44,14.37635577]
[1739675725968,0.03656042,193.46,193.44,9.20775577]
[1739675727067,0.03656042,193.46,193.45,5.1685]
[1739675751385,0.03656042,193.46,193.44,9.20775577]
[1739675753779,5.169,193.43,193.42,0.03732951]
[1739675754586,9.20775577,193.45,193.38,9.20775577]
[1739675754790,9.20775577,193.43,193.36,9.20775577]
[1739675755888,0.0397122,193.41,193.38,0.038052]
[1739675756292,0.0397122,193.41,193.38,9.24580777]
[1739675756589,0.0397122,193.41,193.4,9.20775577]
[1739675758687,0.0397122,193.41,193.4,14.37755577]
[1739675760794,0.0397122,193.41,193.4,9.20775577]
[1739675761889,0.0397122,193.41,193.4,14.37755577]
[1739675767289,202.20775577,193.53,193.4,9.20775577]
[1739675767490,1.5211,193.52,193.45,9.20775577]
[1739675768399,0.03568521,193.5,193.47,0.03307153]
[1739675768598,0.03568521,193.5,193.47,9.2408273]
[1739675771699,0.03568521,193.5,193.47,14.4086273]
[1739675773601,0.03568521,193.5,193.47,9.2408273]
[1739675774398,0.03568521,193.5,193.47,0.03307153]
[1739675774598,9.20775577,193.49,193.47,0.03307153]
[1739675774799,9.20775577,193.49,193.41,9.20775577]
[1739675775200,5.1682,193.47,193.42,5.1693]
[1739675775402,9.20775577,193.49,193.43,9.20775577]
[1739675775902,0.03415136,193.48,193.44,0.03943909]
[1739675776600,5.20205136,193.48,193.44,0.03943909]
[1739675780205,5.168,193.47,193.44,0.03943909]
[1739675781204,0.03415136,193.48,193.44,0.03943909]
[1739675781404,9.20775577,193.47,193.44,0.03943909]
[1739675782202,5.1685,193.45,193.44,0.03943909]
[1739675782402,0.03415136,193.48,193.44,0.03943909]
[1739675782993,0.03415136,193.48,193.44,5.20813909]
[1739675783398,0.03415136,193.48,193.45,9.20775577]
[1739675784003,0.03415136,193.48,193.45,14.37605577]
[1739675785100,0.03415136,193.48,193.45,9.20775577]
[1739675787099,0.03415136,193.48,193.44,5.20813909]
[1739675787296,0.03415136,193.48,193.44,0.03943909]
[1739675789007,5.1682,193.46,193.44,0.03943909]
[1739675790812,0.03415136,193.48,193.44,0.03943909]
[1739675791106,5.1685,193.45,193.44,0.03943909]
[1739675796505,14.37625577,193.45,193.44,0.03943909]
[1739675797207,9.20775577,193.45,193.37,9.20775577]
[1739675797405,9.20775577,193.43,193.37,9.20775577]
[1739675797605,9.20775577,193.41,193.35,9.20775577]
[1739675798009,9.20775577,193.43,193.37,9.20775577]
[1739675798303,0.03863856,193.42,193.37,9.20775577]
[1739675799105,0.03863856,193.42,193.35,9.20775577]
[1739675799308,9.20775577,193.43,193.35,9.20775577]
[1739675799505,0.03354916,193.4,193.35,9.20775577]
[1739675800312,9.20775577,193.39,193.33,9.20775577]
[1739675800812,0.03329809,193.38,193.33,9.20775577]
[1739675803009,5.20369809,193.38,193.33,14.37935577]
[1739675803612,5.20369809,193.38,193.33,9.20775577]
[1739675803812,5.1707,193.37,193.33,9.20775577]
[1739675806218,5.20369809,193.38,193.33,9.20775577]
[1739675806413,5.20369809,193.38,193.32,5.1717]
[1739675806414,5.20369809,193.38,193.35,9.20775577]
[1739675806614,1.579,193.4,193.35,9.20775577]
[1739675806917,0.03365506,193.38,193.37,9.20775577]
[1739675807119,9.20775577,193.43,193.37,9.20775577]
[1739675807319,0.03541741,193.39,193.37,9.20775577]
[1739675808119,0.03541741,193.39,193.35,9.20775577]
[1739675808317,9.20775577,193.41,193.35,9.20775577]
[1739675808620,0.03917072,193.39,193.35,9.20775577]
[1739675808820,9.24692649,193.39,193.33,9.20775577]
[1739675809114,9.20775577,193.39,193.31,9.20775577]
[1739675809420,5.1712,193.35,193.31,9.20775577]
[1739675810916,0.03300852,193.38,193.33,9.20775577]
[1739675811116,9.20775577,193.39,193.33,9.20775577]
[1739675811318,0.03554847,193.38,193.33,9.20775577]
[1739675812024,5.20604847,193.38,193.33,14.37935577]
[1739675812821,5.20604847,193.38,193.33,9.20775577]
[1739675814123,5.20604847,193.38,193.33,14.37925577]
[1739675815328,0.03554847,193.38,193.33,9.20775577]
[1739675815620,0.03554847,193.38,193.35,9.20775577]
[1739675815917,9.20775577,193.43,193.35,9.20775577]
[1739675816127,0.03673758,193.38,193.35,14.37875577]
[1739675816925,0.03673758,193.38,193.35,9.20775577]
[1739675820034,0.03673758,193.38,193.37,14.37835577]
[1739675820233,194.5132,193.46,193.37,9.20775577]
[1739675820535,1.5132,193.46,193.4,9.20775577]
[1739675820834,0.03629612,193.43,193.4,9.20775577]
[1739675821532,0.03629612,193.43,193.4,14.37735577]
[1739675821734,0.03629612,193.43,193.4,9.20775577]
[1739675822636,0.03629612,193.43,193.42,9.20775577]
[1739675822837,5.1679,193.48,193.42,9.20775577]
[1739675823031,0.03557045,193.44,193.42,9.20775577]
[1739675824137,0.03557045,193.44,193.42,14.37705577]
[1739675824634,0.03557045,193.44,193.42,9.20775577]
[1739675824834,0.03557045,193.44,193.43,5.169]
[1739675827436,0.03557045,193.44,193.42,14.37695577]
[1739675828435,0.03557045,193.44,193.4,9.20775577]
[1739675828633,9.20775577,193.45,193.4,9.20775577]
[1739675828939,0.03881256,193.44,193.38,9.20775577]
[1739675829137,9.20775577,193.45,193.38,9.20775577]
[1739675829338,0.03329084,193.43,193.38,9.20775577]
[1739675829839,9.24104661,193.43,193.36,9.20775577]
[1739675830039,9.20775577,193.41,193.36,9.20775577]
[1739675830235,9.24225631,193.41,193.36,9.20775577]
[1739675831139,14.41185631,193.41,193.36,14.37855577]
[1739675831835,9.24225631,193.41,193.36,9.20775577]
[1739675832041,0.03450054,193.41,193.36,9.20775577]
[1739675833337,5.20410054,193.41,193.36,14.37865577]
[1739675836642,0.03450054,193.41,193.4,9.20775577]
[1739675836841,9.20775577,193.45,193.4,9.20775577]
[1739675837042,5.20390867,193.44,193.4,9.20775577]
[1739675837442,0.03510867,193.44,193.4,9.20775577]
[1739675840541,0.03510867,193.44,193.42,9.20775577]
[1739675840742,5.168,193.47,193.42,9.20775577]
[1739675840935,0.03594402,193.45,193.42,9.20775577]
[1739675842043,0.03594402,193.45,193.42,14.37695577]
[1739675843445,0.03594402,193.45,193.44,14.37645577]
[1739675843638,5.1673,193.5,193.44,14.37645577]
[1739675843839,5.1673,193.5,193.46,9.20775577]
[1739675844039,0.03301098,193.49,193.46,9.20775577]
[1739675845140,0.03301098,193.49,193.44,14.37645577]
[1739675846846,5.20051098,193.49,193.44,14.37645577]
[1739675847445,0.03301098,193.49,193.44,14.37645577]
[1739675848048,5.20041098,193.49,193.44,14.37645577]
[1739675848841,0.03301098,193.49,193.45,5.1685]
[1739675849747,0.03301098,193.49,193.44,9.20775577]
[1739675849953,5.20051098,193.49,193.44,9.20775577]
[1739675851741,0.03301098,193.49,193.46,9.20775577]
[1739675851947,5.1672,193.5,193.46,9.20775577]
[1739675852151,0.03939854,193.49,193.46,9.20775577]
[1739675853240,0.03939854,193.49,193.44,14.37645577]
[1739675853641,0.03939854,193.49,193.44,9.20775577]
[1739675854041,5.20689854,193.49,193.44,9.20775577]
[1739675854442,0.03939854,193.49,193.44,9.20775577]
[1739675854949,5.1677,193.48,193.44,9.20775577]
[1739675855153,0.03939854,193.49,193.4,9.20775577]
[1739675855154,9.20775577,193.47,193.4,9.20775577]
[1739675855553,5.20273417,193.45,193.4,9.20775577]
[1739675855753,0.03423417,193.45,193.4,9.20775577]
[1739675856354,5.20273417,193.45,193.4,9.20775577]
[1739675856950,0.03423417,193.45,193.42,9.20775577]
[1739675857154,9.20775577,193.49,193.42,9.20775577]
[1739675857354,0.03425646,193.45,193.42,9.20775577]
[1739675857551,0.03425646,193.45,193.44,9.20775577]
[1739675861050,0.03425646,193.45,193.44,14.37645577]
[1739675861354,0.03425646,193.45,193.44,9.20775577]
[1739675861552,0.03425646,193.45,193.42,9.20775577]
[1739675862452,0.03425646,193.45,193.41,1.5909]
[1739675862756,5.1692,193.43,193.38,9.20775577]
[1739675863161,0.03591262,193.42,193.38,9.20775577]
[1739675863358,5.1696,193.41,193.36,9.20775577]
[1739675863552,0.03591262,193.42,193.36,9.20775577]
[1739675864658,5.1698,193.41,193.36,14.37865577]
[1739675864858,0.03591262,193.42,193.36,9.20775577]
[1739675866060,5.1699,193.4,193.36,9.20775577]
[1739675866359,0.03591262,193.42,193.36,9.20775577]
[1739675866760,5.1698,193.4,193.36,14.37855577]
[1739675867362,0.03591262,193.42,193.36,14.37855577]
[1739675867557,5.1696,193.41,193.36,14.37855577]
[1739675868958,5.1696,193.41,193.38,9.20775577]
[1739675869655,0.03591262,193.42,193.38,9.20775577]
[1739675869864,0.03591262,193.42,193.38,14.37805577]
[1739675870157,0.03591262,193.42,193.38,9.20775577]
[1739675870358,5.20541262,193.42,193.38,9.20775577]
[1739675871254,0.03591262,193.42,193.38,9.20775577]
[1739675872460,5.20521262,193.42,193.38,9.20775577]
[1739675877458,0.03591262,193.42,193.4,9.20775577]
[1739675882153,0.03591262,193.42,193.4,14.37735577]
[1739675882764,0.03591262,193.42,193.41,5.1695]
[1739675882964,9.20775577,193.5,193.4,9.20775577]
[1739675883167,9.20775577,193.5,193.44,9.20775577]
[1739675883866,5.1677,193.48,193.44,9.20775577]
[1739675884268,5.20206402,193.48,193.44,9.24696391]
[1739675887468,0.03436402,193.48,193.44,9.24696391]
[1739675887966,0.03436402,193.48,193.46,9.20775577]
[1739675890271,0.03436402,193.48,193.46,14.37595577]
[1739675892274,0.03436402,193.48,193.47,5.1679]
[1739675894172,0.03436402,193.48,193.46,14.37585577]
[1739675895374,0.03436402,193.48,193.47,5.1679]
[1739675901877,0.03436402,193.48,193.46,9.20775577]
[1739675902571,0.03436402,193.48,193.47,5.1679]
[1739675902768,0.03436402,193.48,193.46,9.20775577]
[1739675904478,9.24211979,193.48,193.44,0.03920814]
[1739675904678,5.1685,193.45,193.44,0.03920814]
[1739675915088,10.87555577,193.46,193.36,9.20775577]
[1739675915279,10.87555577,193.46,193.19,67.77750609]
[1739675915280,10.87555577,193.46,193.38,9.20775577]
[1739675915479,10.87555577,193.46,193.4,9.20775577]
[1739675915681,9.20775577,193.44,193.38,9.20775577]
[1739675916083,9.20775577,193.44,193.36,9.20775577]
[1739675916285,0.0372754,193.43,193.36,9.20775577]
[1739675916990,5.1701,193.4,193.36,9.20775577]
[1739675919988,0.0372754,193.43,193.38,9.20775577]
[1739675920192,9.20775577,193.44,193.38,9.20775577]
[1739675920393,0.03600011,193.42,193.38,9.20775577]
[1739675921096,5.1696,193.41,193.38,9.20775577]
[1739675921395,0.03600011,193.42,193.38,9.20775577]
[1739675921896,5.20550011,193.42,193.38,9.20775577]
[1739675922497,5.1696,193.41,193.36,14.37865577]
[1739675924595,5.20530011,193.42,193.38,9.20775577]
[1739675924801,5.1693,193.42,193.38,9.20775577]
[1739675924995,5.20718078,193.42,193.38,9.20775577]
[1739675925492,0.03788078,193.42,193.4,9.20775577]
[1739675925696,1.6678,193.46,193.4,9.20775577]
[1739675925996,0.03708597,193.43,193.4,9.20775577]
[1739675928999,0.03708597,193.43,193.4,14.37755577]
[1739675929206,0.03708597,193.43,193.4,9.20775577]
[1739675929997,0.03708597,193.43,193.41,5.1695]
[1739675931801,0.03708597,193.43,193.42,14.37705577]
[1739675932105,0.03593008,193.44,193.42,14.37705577]
[1739675933608,0.03593008,193.44,193.42,9.20775577]
[1739675933803,0.03593008,193.44,193.43,5.169]
[1739675934004,0.03593008,193.44,193.42,9.20775577]
[1739675935205,0.03593008,193.44,193.42,14.37695577]
[1739675936111,0.03593008,193.44,193.42,9.20775577]
[1739675942611,0.03593008,193.44,193.42,14.37695577]
[1739675944012,0.03593008,193.44,193.42,9.20775577]
[1739675947313,5.169,193.43,193.38,14.37805577]
[1739675947514,9.20775577,193.44,193.38,9.20775577]
[1739675947714,9.2465107,193.42,193.36,9.20775577]
[1739675948014,9.20775577,193.42,193.36,9.20775577]
[1739675948209,5.17,193.4,193.36,9.20775577]
[1739675948617,9.20775577,193.4,193.34,14.37915577]
[1739675948917,9.20775577,193.4,193.34,9.20775577]
[1739675950720,5.1706,193.38,193.34,9.20775577]
[1739675951017,9.20775577,193.4,193.34,9.20775577]
[1739675951220,0.03460423,193.41,193.36,9.20775577]
[1739675951409,9.20775577,193.44,193.36,9.20775577]
[1739675951610,0.03804392,193.41,193.38,9.20775577]
[1739675955431,5.20764392,193.41,193.38,9.20775577]
[1739675956018,0.03804392,193.41,193.38,9.20775577]
[1739675959327,0.03804392,193.41,193.36,9.20775577]
[1739675959625,9.20775577,193.4,193.34,9.20775577]
[1739675960026,5.1706,193.38,193.34,9.20775577]
[1739675963628,5.1707,193.37,193.34,9.20775577]
[1739675964724,5.1709,193.36,193.34,9.20775577]
[1739675966932,5.1717,193.34,193.32,9.20775577]
[1739675967134,9.20775577,193.38,193.32,9.20775577]
[1739675967331,0.0373779,193.35,193.32,9.20775577]
[1739675967634,5.1715,193.34,193.32,9.20775577]
[1739675968634,0.0373779,193.35,193.32,9.20775577]